Workbook

Sheet паспорт
A1: ПАТ "УКРТРАНСГАЗ" | G1: ПАСПОРТ ФІЗИКО-ХІМІЧНИХ ПОКАЗНИКІВ ПРИРОДНОГО ГАЗУ № 535
A2: Філія "УМГ "ПРИКАРПАТТРАНСГАЗ" | G2: переданого Богородчанським ВУПЗГ та прийнятого ПАТ "Івано-Франківськгаз"
A3: Богородчанський п/м Богородчанське ВУПЗГ | G3: Маршрут № 535
A4: Вимірювальна хіміко-аналітична лабораторія
A5: Свідоцтво № ІФ 761 чинне до 13 червня 2019 р. | K5: по газопроводу-перемичці "БПСГ - м/г "Союз", "УПУ", "Прогрес" | V5: за період з | X5: 2017-04-01 | Z5: по | AA5: 2017-04-30
A7: Число місяця | B7: Компонентний склад, % мол. | N7: Фізико-хімічні показники газу обчислені на основі компонентного складу, 101,325 кПа | X7: Температура точки роси вологи (Р = 3.92 МПа), ºС | Y7: Температура точки роси вуглеводнів, ºС | Z7: Вміст сірководню, г/м3 | AA7: Вміст меркаптанової сірки, г/м3 | AB7: Вміст механічних домішок, г/м3
N8: Густина абсолютна, кг/м3,при 20 ºС, | O8: Температура вимірювання/згоряння при 20/25°С
B9: метан, С1 | C9: етан, С2 | D9: пропан, С3 | E9: ізо-бутан, і-С4 | F9: н-бутан, н-С4 | G9: нео-пентан, нео-С5 | H9: ізо-пентан, і-С5 | I9: н-пентан, н-С5 | J9: гексани та вищі, С6+ | K9: кисень, О2 | L9: азот, N2 | M9: діоксид вуглецю, CО2 | O9: Теплота згоряння нижча | R9: Теплота згоряння вища | U9: Число Воббе вище
O10: ккал/м3 | P10: МДж/м3 | Q10: кВт⋅год/м3 | R10: ккал/м3 | S10: МДж/м3 | T10: кВт⋅год/м3 | U10: ккал/м3 | V10: МДж/м3 | W10: кВт⋅год/м3
A11: 1 | O11: =P11*238.8459 -> 8173.521659 | P11: 34.2209 | Q11: =P11/3.6 -> 9.505805556 | R11: =S11*238.8459 -> 9060.595332 | S11: 37.9349 | T11: =S11/3.6 -> 10.53747222 | AC11: =SUM(B11:M11)+$K$42+$N$42 -> 0
A12: 2 | O12: =P12*238.8459 -> 8173.521659 | P12: 34.2209 | Q12: 9.505805556 | R12: =S12*238.8459 -> 9060.595332 | S12: 37.9349 | T12: 10.53747222 | AC12: 0
A13: 3 | B13: 96.4873 | C13: 1.9847 | D13: 0.6395 | E13: 0.1011 | F13: 0.097 | G13: 0.0017 | H13: 0.0189 | I13: 0.0131 | J13: 0.0036 | K13: 0.0055 | L13: 0.5167 | M13: 0.1313 | N13: 0.6959 | O13: 8181.546882 | P13: 34.2545 | Q13: 9.515138889 | R13: 9069.241553 | S13: 37.9711 | T13: 10.54752778 | U13: =V13*238.8459 -> 11931.71413 | V13: 49.9557 | W13: =V13/3.6 -> 13.87658333 | X13: -12.4 | Y13: -8.6 | AC13: 100.0004 | AD13: =IF(AC13=100,"ОК"," ") -> 
A14: 4 | B14: 96.4246 | C14: 2.0117 | D14: 0.6444 | E14: 0.105 | F14: 0.1001 | G14: 0.0011 | H14: 0.0197 | I14: 0.0141 | J14: 0.005 | K14: 0.0067 | L14: 0.5341 | M14: 0.1335 | N14: 0.6964 | O14: 8184.24584 | P14: 34.2658 | Q14: 9.518277778 | R14: 9072.059935 | S14: 37.9829 | T14: 10.55080556 | U14: 11930.92594 | V14: 49.9524 | W14: 13.87566667 | X14: -12.2 | Y14: -7.9 | AC14: 100 | AD14: =IF(AC14=100,"ОК"," ") -> ОК
A15: 5 | B15: 96.5162 | C15: 1.9637 | D15: 0.6333 | E15: 0.1021 | F15: 0.0981 | G15: 0.001 | H15: 0.019 | I15: 0.0135 | J15: 0.0044 | K15: 0.0062 | L15: 0.5084 | M15: 0.1341 | N15: 0.6957 | O15: 8180.519844 | P15: 34.2502 | Q15: 9.513944444 | R15: 9068.142862 | S15: 37.9665 | T15: 10.54625 | U15: 11931.4514 | V15: 49.9546 | W15: 13.87627778 | X15: -9.6 | Y15: -7.1 | AC15: 100 | AD15: ОК
A16: 6 | B16: 96.5266 | C16: 1.9795 | D16: 0.6328 | E16: 0.1029 | F16: 0.0979 | G16: 0.0011 | H16: 0.0192 | I16: 0.0136 | J16: 0.0058 | K16: 0.0061 | L16: 0.4836 | M16: 0.1309 | N16: 0.6957 | O16: 8184.365263 | P16: 34.2663 | Q16: 9.518416667 | R16: 9072.34655 | S16: 37.9841 | T16: 10.55113889 | U16: 11937.06427 | V16: 49.9781 | W16: 13.88280556 | X16: -15.1 | Y16: -9.8 | AC16: 100 | AD16: ОК
A17: 7 | B17: 96.6016 | C17: 1.9599 | D17: 0.6315 | E17: 0.1025 | F17: 0.0975 | G17: 0.0013 | H17: 0.0172 | I17: 0.012 | J17: 0.0049 | K17: 0.0054 | L17: 0.4437 | M17: 0.1223 | N17: 0.6925 | O17: 8185.655031 | P17: 34.2717 | Q17: 9.519916667 | R17: 9073.875164 | S17: 37.9905 | T17: 10.55291667 | U17: 11943.8475 | V17: 50.0065 | W17: 13.89069444 | X17: -16.1 | Y17: -9.7 | Z17: <0,0001 | AA17: 0.0002 | AB17: 0 | AC17: 99.9998
A18: 8 | O18: 8185.655031 | P18: 34.2717 | Q18: 9.519916667 | R18: 9073.875164 | S18: 37.9905 | T18: 10.55291667 | AC18: 0
A19: 9 | O19: 8185.655031 | P19: 34.2717 | Q19: 9.519916667 | R19: 9073.875164 | S19: 37.9905 | T19: 10.55291667 | AC19: 0
A20: 10 | B20: 96.5454 | C20: 2.0039 | D20: 0.6407 | E20: 0.1036 | F20: 0.0986 | G20: 0.0012 | H20: 0.0214 | I20: 0.0146 | J20: 0.0054 | K20: 0.006 | L20: 0.4251 | M20: 0.1342 | N20: 0.6958 | O20: 8192.223293 | P20: 34.2992 | Q20: =P20/3.6 -> 9.527555556 | R20: 9080.945003 | S20: 38.0201 | T20: =S20/3.6 -> 10.56113889 | U20: 11947.76457 | V20: 50.0229 | W20: 13.89525 | X20: -12.8 | Y20: -8.2 | AC20: 100.0001
A21: 11 | B21: 96.4347 | C21: 2.0744 | D21: 0.6718 | E21: 0.1096 | F21: 0.1052 | G21: 0.0016 | H21: 0.0215 | I21: 0.0155 | J21: 0.0036 | K21: 0.0065 | L21: 0.4068 | M21: 0.1488 | N21: 0.6969 | O21: 8202.851936 | P21: 34.3437 | Q21: 9.539916667 | R21: 9092.337952 | S21: 38.0678 | T21: 10.57438889 | U21: 11953.64018 | V21: 50.0475 | W21: 13.90208333 | X21: -15.1 | Y21: -11.7 | AC21: 100 | AD21: ОК
A22: 12 | B22: 96.6863 | C22: 1.9519 | D22: 0.628 | E22: 0.1014 | F22: 0.0971 | G22: 0.0011 | H22: 0.0179 | I22: 0.0128 | J22: 0.0031 | K22: 0.0057 | L22: 0.367 | M22: 0.1278 | N22: 0.6947 | O22: 8189.858719 | P22: 34.2893 | Q22: 9.524805556 | R22: 9078.604313 | S22: 38.0103 | T22: 10.55841667 | U22: 11953.95068 | V22: 50.0488 | W22: 13.90244444 | X22: -16.4 | Y22: -9.9 | AC22: 100.0001
A23: 13 | O23: 8189.858719 | P23: 34.2893 | Q23: 9.524805556 | R23: 9078.604313 | S23: 38.0103 | T23: 10.55841667 | AC23: 0
A24: 14 | O24: 8189.858719 | P24: 34.2893 | Q24: 9.524805556 | R24: 9078.604313 | S24: 38.0103 | T24: 10.55841667 | AC24: 0
A25: 15 | O25: 8189.858719 | P25: 34.2893 | Q25: 9.524805556 | R25: 9078.604313 | S25: 38.0103 | T25: 10.55841667 | AC25: 0
A26: 16 | O26: 8189.858719 | P26: 34.2893 | Q26: =P26/3.6 -> 9.524805556 | R26: 9078.604313 | S26: 38.0103 | T26: =S26/3.6 -> 10.55841667 | AC26: 0
A27: 17 | O27: 8189.858719 | P27: 34.2893 | Q27: 9.524805556 | R27: 9078.604313 | S27: 38.0103 | T27: 10.55841667 | AC27: 0
A28: 18 | B28: 96.6153 | C28: 1.9668 | D28: 0.6324 | E28: 0.1021 | F28: 0.0974 | G28: 0.0013 | H28: 0.0197 | I28: 0.0137 | J28: 0.0049 | K28: 0.0056 | L28: 0.4096 | M28: 0.1313 | N28: 0.6952 | O28: 8189.094412 | P28: 34.2861 | Q28: 9.523916667 | R28: 9077.648929 | S28: 38.0063 | T28: 10.55730556 | U28: 11948.17061 | V28: 50.0246 | W28: 13.89572222 | AC28: 100.0001
A29: 19 | O29: 8189.094412 | P29: 34.2861 | Q29: 9.523916667 | R29: 9077.648929 | S29: 38.0063 | T29: 10.55730556 | AC29: 0
A30: 20 | O30: 8189.094412 | P30: 34.2861 | Q30: 9.523916667 | R30: 9077.648929 | S30: 38.0063 | T30: 10.55730556 | AC30: 0 | AD30: =IF(AC30=100,"ОК"," ") -> 
A31: 21 | B31: 96.4569 | C31: 2.1011 | D31: 0.6767 | E31: 0.1102 | F31: 0.1061 | G31: 0.0016 | H31: 0.0216 | I31: 0.0158 | J31: 0.0058 | K31: 0.0071 | L31: 0.3461 | M31: 0.1511 | N31: 0.6969 | O31: 8210.829389 | P31: 34.3771 | Q31: 9.549194444 | R31: 9101.055827 | S31: 38.1043 | T31: 10.58452778 | U31: 11964.72263 | V31: 50.0939 | W31: 13.91497222 | X31: -12 | Y31: -8.9 | AC31: 100.0001
A32: 22 | O32: 8210.829389 | P32: 34.3771 | Q32: 9.549194444 | R32: 9101.055827 | S32: 38.1043 | T32: 10.58452778 | AC32: 0
A33: 23 | O33: 8210.829389 | P33: 34.3771 | Q33: =P33/3.6 -> 9.549194444 | R33: 9101.055827 | S33: 38.1043 | T33: =S33/3.6 -> 10.58452778 | AC33: 0 | AD33: =IF(AC33=100,"ОК"," ") -> 
A34: 24 | B34: 96.7347 | C34: 1.9458 | D34: 0.6281 | E34: 0.1014 | F34: 0.0968 | G34: 0.0012 | H34: 0.0185 | I34: 0.0134 | J34: 0.004 | K34: 0.0057 | L34: 0.3206 | M34: 0.1297 | N34: 0.6945 | O34: 8193.584715 | P34: 34.3049 | Q34: 9.529138889 | R34: 9082.760231 | S34: 38.0277 | T34: 10.56325 | U34: 11961.06829 | V34: 50.0786 | W34: 13.91072222 | X34: -14.5 | Y34: -7.6 | Z34: <0,0001 | AA34: 0.0002 | AB34: 0 | AC34: 99.9999
A35: 25 | O35: 8193.584715 | P35: 34.3049 | Q35: 9.529138889 | R35: 9082.760231 | S35: 38.0277 | T35: 10.56325 | AC35: 0
A36: 26 | O36: 8193.584715 | P36: 34.3049 | Q36: 9.529138889 | R36: 9082.760231 | S36: 38.0277 | T36: =S36/3.6 -> 10.56325 | AC36: 0
A37: 27 | O37: 8193.584715 | P37: 34.3049 | Q37: 9.529138889 | R37: 9082.760231 | S37: 38.0277 | T37: 10.56325 | AC37: 0
A38: 28 | O38: 8193.584715 | P38: 34.3049 | Q38: 9.529138889 | R38: 9082.760231 | S38: 38.0277 | T38: 10.56325 | AC38: 0
A39: 29 | O39: 8193.584715 | P39: 34.3049 | Q39: 9.529138889 | R39: 9082.760231 | S39: 38.0277 | T39: 10.56325 | AC39: 0
A40: 30 | O40: 8193.584715 | P40: 34.3049 | Q40: 9.529138889 | R40: 9082.760231 | S40: 38.0277 | T40: 10.56325 | AC40: 0
A41: 31 | AC41: 0
A42: Рівень одоризації відповідає чинним нормативним документам | O42: 8191.694771 | P42: 34.29698718 | Q42: 9.526940884 | R42: 9080.47483 | S42: 38.01813148 | T42: 10.56059208
H43: Середньозважене значення теплоти згоряння:
B46: Начальник Богородчанського ВУПЗГ Мисліборський Л.В.
C47: Підрозділу підприємства, якому підпорядкована лабораторія | O47: прізвище | R47: підпис | V47: дата
B48: Начальник лабораторії Мельниченко С.І.
C49: Лабораторія, де здійснювалось вимірювання газу | O49: прізвище | R49: підпис | V49: дата
B50: Начальник служби метрології Гарбуз Ю.М.
C51: Підрозділу, відповідального за облік газу за маршрутом | O51: прізвище | R51: підпис | V51: дата

Sheet додаток
A2: Додаток до Паспорту фізико-хімічних показників природного газу № 535
A4: Область | B4: ГРС, прямий споживач | C4: Cередньозважене значення вищої теплоти згоряння
C5: МДж/м³ | D5: ккал/м³ | E5: кВт*год./м³
A6: Івано-Франківська | B6: ГРС Саджава | C6: 38.02 | D6: 9080 | E6: 10.56
A7: Середньозважене значення вищої теплоти згоряння по маршруту № 535 | C7: =C6 -> 38.02 | D7: =D6 -> 9080 | E7: 10.56
A11: Начальник Богородчанського ВУПЗГ Мисліборський Л.В.
A12: Підрозділу підприємства, якому підпорядкована лабораторія | D12: прізвище | E12: підпис | F12: дата
A13: Начальник лабораторії Мельниченко С.І.
A14: Лабораторія, де здійснювалось вимірювання газу | D14: прізвище | E14: підпис | F14: дата
A15: Начальник служби метрології | D15: Гарбуз Ю.М.
A16: Підрозділу, відповідального за облік газу за маршрутом | D16: прізвище | E16: підпис | F16: дата

Sheet variablesList (hidden)
A1: 3 | B1: x:\gaysin | C1: 10, 11, 24, 25, 127, 128, 132, 180, 207, 215 | D1: x:\
B2: x:\Illinci
B3: x:\Talne
